{"text_format":"3","workbook":"xlsx","n_sheets":2,"sheets":["Suivi de perte de poids","calculs"],"not_rendered":{"charts":1,"defined_names":10},"read":"whole","date_system":"1900"}

{"sheet":"Suivi de perte de poids","index":0,"n_rows":19,"n_cols":9,"rows_kept":19,"merged":[[0,3,0,7],[0,8,0,9],[1,3,2,9]]}
[null,"OBJECTIF DE POIDS","VUE DE GRAPHIQUE","Madison Butler",{"$nulls":4},"PERTE DE POIDS"]
[{"$nulls":3},"OUTIL DE SUIVI"]
[null,{"v":172,"d":"172.0"},"HEBDOMADAIRE"]
[null,"AFFICHER L’OBJECTIF DE POIDS","Oui"]
[null,"Le graphique de suivi du poids actuel se trouve dans cette cellule. Sélectionnez « Oui » dans la cellule C4 pour afficher la ligne Objectif de poids au-dessus du graphique en aires."]
[]
[null,"DATE","POIDS"]
[null,{"$f":"TODAY()-77","v":"2023-01-10"},{"v":176,"d":"176.0"}]
[null,{"$f":"TODAY()-70","v":"2023-01-17"},{"v":176,"d":"176.0"}]
[null,{"$f":"TODAY()-63","v":"2023-01-24"},177.6]
[null,{"$f":"TODAY()-56","v":"2023-01-31"},176.5]
[null,{"$f":"TODAY()-49","v":"2023-02-07"},176.1]
[null,{"$f":"TODAY()-42","v":"2023-02-14"},{"v":174,"d":"174.0"}]
[null,{"$f":"TODAY()-35","v":"2023-02-21"},173.5]
[null,{"$f":"TODAY()-28","v":"2023-02-28"},{"v":173,"d":"173.0"}]
[null,{"$f":"TODAY()-21","v":"2023-03-07"},{"v":172,"d":"172.0"}]
[null,{"$f":"TODAY()-14","v":"2023-03-14"},{"v":172,"d":"172.0"}]
[null,{"$f":"TODAY()-7","v":"2023-03-21"},{"v":173,"d":"173.0"}]
[null,{"$f":"TODAY()","v":"2023-03-28"},{"v":172,"d":"172.0"}]

{"sheet":"calculs","index":1,"n_rows":107,"n_cols":17,"rows_kept":107,"hidden":true}
["*** La feuille doit rester masquée ***"]
[]
[{"$f":"COUNTIF(A5:A107,FALSE)","v":12},"Périodes","Valeurs",{"$nulls":3},{"$f":"COUNTIF(H5:H28,\">\"&0)","v":3},"Périodes",null,"Valeurs"]
[null,"Semaine",null,null,{"$f":"IFERROR(IF(AffichageObjectifPoids=\"Oui\", TRUE, FALSE),FALSE)","v":true},null,null,"Mois","EOM"]
[{"$f":"FALSE","v":false},{"$f":"IFERROR(IF(LEN('Suivi de perte de poids'!$B8)=0,TODAY(),'Suivi de perte de poids'!$B8),TODAY())","v":"2023-01-10"},{"$f":"IFERROR(IF(LEN('Suivi de perte de poids'!$C8)=0,ObjectifPoids,'Suivi de perte de poids'!$C8),0)","v":176},{"$f":"IFERROR(IF(MIN(PériodesGraphique)=0,TODAY(),MIN(PériodesGraphique)),TODAY())","v":"2023-01-10"},{"$f":"IFERROR(IF($A$5,0,IF($E$4,ObjectifPoids,NA())),0)","v":172},null,null,{"$f":"IFERROR(IF($A$5,TODAY(),DATE(YEAR($B5),MONTH($B5),1)),\"\")","v":"2023-01-01"},{"$f":"IFERROR(IF($A$5,TODAY(),EOMONTH($H5,0)),\"\")","v":"2023-01-31"},{"$f":"IFERROR(IF($A$5,0,AVERAGEIFS(Poids[POIDS],Poids[DATE],\">=\"&$H5,Poids[DATE],\"<=\"&$I5)),NA())","v":176.525}]
[{"$f":"IF((LEN('Suivi de perte de poids'!$C9)=0),TRUE)","v":false},{"$f":"IFERROR(IF(A6,0,IF(LEN('Suivi de perte de poids'!$B9)=0,0,'Suivi de perte de poids'!$B9)),\"\")","v":"2023-01-17"},{"$f":"IFERROR(IF(A6,0,IF(LEN('Suivi de perte de poids'!$C9)=0,0,'Suivi de perte de poids'!$C9)),\"\")","v":176},{"$f":"IFERROR(IF(MAX(PériodesGraphique)=0,TODAY(),MAX(PériodesGraphique)),TODAY())","v":"2023-03-28"},{"$f":"IFERROR(IF($A$5,0,IF($E$4,ObjectifPoids,NA())),0)","v":172},null,null,{"$f":"IF($I5+1>MAX($B:$B),NA(),$I5+1)","v":"2023-02-01"},{"$f":"EOMONTH($H6,0)","v":"2023-02-28"},{"$f":"IFERROR(AVERAGEIFS(Poids[POIDS],Poids[DATE],\">=\"&$H6,Poids[DATE],\"<=\"&$I6),NA())","v":174.15}]
[{"$f":"IF((LEN('Suivi de perte de poids'!$C10)=0),TRUE)","v":false},{"$f":"IFERROR(IF(A7,0,IF(LEN('Suivi de perte de poids'!$B10)=0,0,'Suivi de perte de poids'!$B10)),\"\")","v":"2023-01-24"},{"$f":"IFERROR(IF(A7,0,IF(LEN('Suivi de perte de poids'!$C10)=0,0,'Suivi de perte de poids'!$C10)),\"\")","v":177.6},{"$nulls":4},"2023-03-01","2023-03-31",{"$f":"IFERROR(AVERAGEIFS(Poids[POIDS],Poids[DATE],\">=\"&$H7,Poids[DATE],\"<=\"&$I7),NA())","v":172.25}]
[{"$f":"IF((LEN('Suivi de perte de poids'!$C11)=0),TRUE)","v":false},{"$f":"IFERROR(IF(A8,0,IF(LEN('Suivi de perte de poids'!$B11)=0,0,'Suivi de perte de poids'!$B11)),\"\")","v":"2023-01-31"},{"$f":"IFERROR(IF(A8,0,IF(LEN('Suivi de perte de poids'!$C11)=0,0,'Suivi de perte de poids'!$C11)),\"\")","v":176.5},{"$nulls":4},{"$error":"#N/A"},{"$error":"#N/A"},{"$f":"IFERROR(AVERAGEIFS(Poids[POIDS],Poids[DATE],\">=\"&$H8,Poids[DATE],\"<=\"&$I8),NA())","v":{"$error":"#N/A"}}]
[{"$f":"IF((LEN('Suivi de perte de poids'!$C12)=0),TRUE)","v":false},{"$f":"IFERROR(IF(A9,0,IF(LEN('Suivi de perte de poids'!$B12)=0,0,'Suivi de perte de poids'!$B12)),\"\")","v":"2023-02-07"},{"$f":"IFERROR(IF(A9,0,IF(LEN('Suivi de perte de poids'!$C12)=0,0,'Suivi de perte de poids'!$C12)),\"\")","v":176.1},{"$nulls":4},{"$error":"#N/A"},{"$error":"#N/A"},{"$f":"IFERROR(AVERAGEIFS(Poids[POIDS],Poids[DATE],\">=\"&$H9,Poids[DATE],\"<=\"&$I9),NA())","v":{"$error":"#N/A"}}]
[{"$f":"IF((LEN('Suivi de perte de poids'!$C13)=0),TRUE)","v":false},{"$f":"IFERROR(IF(A10,0,IF(LEN('Suivi de perte de poids'!$B13)=0,0,'Suivi de perte de poids'!$B13)),\"\")","v":"2023-02-14"},{"$f":"IFERROR(IF(A10,0,IF(LEN('Suivi de perte de poids'!$C13)=0,0,'Suivi de perte de poids'!$C13)),\"\")","v":174},{"$nulls":4},{"$error":"#N/A"},{"$error":"#N/A"},{"$f":"IFERROR(AVERAGEIFS(Poids[POIDS],Poids[DATE],\">=\"&$H10,Poids[DATE],\"<=\"&$I10),NA())","v":{"$error":"#N/A"}}]
[{"$f":"IF((LEN('Suivi de perte de poids'!$C14)=0),TRUE)","v":false},{"$f":"IFERROR(IF(A11,0,IF(LEN('Suivi de perte de poids'!$B14)=0,0,'Suivi de perte de poids'!$B14)),\"\")","v":"2023-02-21"},{"$f":"IFERROR(IF(A11,0,IF(LEN('Suivi de perte de poids'!$C14)=0,0,'Suivi de perte de poids'!$C14)),\"\")","v":173.5},{"$nulls":4},{"$error":"#N/A"},{"$error":"#N/A"},{"$f":"IFERROR(AVERAGEIFS(Poids[POIDS],Poids[DATE],\">=\"&$H11,Poids[DATE],\"<=\"&$I11),NA())","v":{"$error":"#N/A"}},{"$nulls":6},{"$f":"MAX($B:$B)","v":"2023-03-28"}]
[{"$f":"IF((LEN('Suivi de perte de poids'!$C15)=0),TRUE)","v":false},{"$f":"IFERROR(IF(A12,0,IF(LEN('Suivi de perte de poids'!$B15)=0,0,'Suivi de perte de poids'!$B15)),\"\")","v":"2023-02-28"},{"$f":"IFERROR(IF(A12,0,IF(LEN('Suivi de perte de poids'!$C15)=0,0,'Suivi de perte de poids'!$C15)),\"\")","v":173},{"$nulls":4},{"$error":"#N/A"},{"$error":"#N/A"},{"$f":"IFERROR(AVERAGEIFS(Poids[POIDS],Poids[DATE],\">=\"&$H12,Poids[DATE],\"<=\"&$I12),NA())","v":{"$error":"#N/A"}}]
[{"$f":"IF((LEN('Suivi de perte de poids'!$C16)=0),TRUE)","v":false},{"$f":"IFERROR(IF(A13,0,IF(LEN('Suivi de perte de poids'!$B16)=0,0,'Suivi de perte de poids'!$B16)),\"\")","v":"2023-03-07"},{"$f":"IFERROR(IF(A13,0,IF(LEN('Suivi de perte de poids'!$C16)=0,0,'Suivi de perte de poids'!$C16)),\"\")","v":172},{"$nulls":4},{"$error":"#N/A"},{"$error":"#N/A"},{"$f":"IFERROR(AVERAGEIFS(Poids[POIDS],Poids[DATE],\">=\"&$H13,Poids[DATE],\"<=\"&$I13),NA())","v":{"$error":"#N/A"}}]
[{"$f":"IF((LEN('Suivi de perte de poids'!$C17)=0),TRUE)","v":false},{"$f":"IFERROR(IF(A14,0,IF(LEN('Suivi de perte de poids'!$B17)=0,0,'Suivi de perte de poids'!$B17)),\"\")","v":"2023-03-14"},{"$f":"IFERROR(IF(A14,0,IF(LEN('Suivi de perte de poids'!$C17)=0,0,'Suivi de perte de poids'!$C17)),\"\")","v":172},{"$nulls":4},{"$error":"#N/A"},{"$error":"#N/A"},{"$f":"IFERROR(AVERAGEIFS(Poids[POIDS],Poids[DATE],\">=\"&$H14,Poids[DATE],\"<=\"&$I14),NA())","v":{"$error":"#N/A"}}]
[{"$f":"IF((LEN('Suivi de perte de poids'!$C18)=0),TRUE)","v":false},{"$f":"IFERROR(IF(A15,0,IF(LEN('Suivi de perte de poids'!$B18)=0,0,'Suivi de perte de poids'!$B18)),\"\")","v":"2023-03-21"},{"$f":"IFERROR(IF(A15,0,IF(LEN('Suivi de perte de poids'!$C18)=0,0,'Suivi de perte de poids'!$C18)),\"\")","v":173},{"$nulls":4},{"$error":"#N/A"},{"$error":"#N/A"},{"$f":"IFERROR(AVERAGEIFS(Poids[POIDS],Poids[DATE],\">=\"&$H15,Poids[DATE],\"<=\"&$I15),NA())","v":{"$error":"#N/A"}}]
[{"$f":"IF((LEN('Suivi de perte de poids'!$C19)=0),TRUE)","v":false},{"$f":"IFERROR(IF(A16,0,IF(LEN('Suivi de perte de poids'!$B19)=0,0,'Suivi de perte de poids'!$B19)),\"\")","v":"2023-03-28"},{"$f":"IFERROR(IF(A16,0,IF(LEN('Suivi de perte de poids'!$C19)=0,0,'Suivi de perte de poids'!$C19)),\"\")","v":172},{"$nulls":4},{"$error":"#N/A"},{"$error":"#N/A"},{"$f":"IFERROR(AVERAGEIFS(Poids[POIDS],Poids[DATE],\">=\"&$H16,Poids[DATE],\"<=\"&$I16),NA())","v":{"$error":"#N/A"}}]
[{"$f":"IF((LEN('Suivi de perte de poids'!$C20)=0),TRUE)","v":true},{"$f":"IFERROR(IF(A17,0,IF(LEN('Suivi de perte de poids'!$B20)=0,0,'Suivi de perte de poids'!$B20)),\"\")","v":"00:00:00"},{"$f":"IFERROR(IF(A17,0,IF(LEN('Suivi de perte de poids'!$C20)=0,0,'Suivi de perte de poids'!$C20)),\"\")","v":0},{"$nulls":4},{"$error":"#N/A"},{"$error":"#N/A"},{"$f":"IFERROR(AVERAGEIFS(Poids[POIDS],Poids[DATE],\">=\"&$H17,Poids[DATE],\"<=\"&$I17),NA())","v":{"$error":"#N/A"}}]
[{"$f":"IF((LEN('Suivi de perte de poids'!$C21)=0),TRUE)","v":true},{"$f":"IFERROR(IF(A18,0,IF(LEN('Suivi de perte de poids'!$B21)=0,0,'Suivi de perte de poids'!$B21)),\"\")","v":"00:00:00"},{"$f":"IFERROR(IF(A18,0,IF(LEN('Suivi de perte de poids'!$C21)=0,0,'Suivi de perte de poids'!$C21)),\"\")","v":0},{"$nulls":4},{"$error":"#N/A"},{"$error":"#N/A"},{"$f":"IFERROR(AVERAGEIFS(Poids[POIDS],Poids[DATE],\">=\"&$H18,Poids[DATE],\"<=\"&$I18),NA())","v":{"$error":"#N/A"}}]
[{"$f":"IF((LEN('Suivi de perte de poids'!$C22)=0),TRUE)","v":true},{"$f":"IFERROR(IF(A19,0,IF(LEN('Suivi de perte de poids'!$B22)=0,0,'Suivi de perte de poids'!$B22)),\"\")","v":"00:00:00"},{"$f":"IFERROR(IF(A19,0,IF(LEN('Suivi de perte de poids'!$C22)=0,0,'Suivi de perte de poids'!$C22)),\"\")","v":0},{"$nulls":4},{"$error":"#N/A"},{"$error":"#N/A"},{"$f":"IFERROR(AVERAGEIFS(Poids[POIDS],Poids[DATE],\">=\"&$H19,Poids[DATE],\"<=\"&$I19),NA())","v":{"$error":"#N/A"}}]
[{"$f":"IF((LEN('Suivi de perte de poids'!$C23)=0),TRUE)","v":true},{"$f":"IFERROR(IF(A20,0,IF(LEN('Suivi de perte de poids'!$B23)=0,0,'Suivi de perte de poids'!$B23)),\"\")","v":"00:00:00"},{"$f":"IFERROR(IF(A20,0,IF(LEN('Suivi de perte de poids'!$C23)=0,0,'Suivi de perte de poids'!$C23)),\"\")","v":0},{"$nulls":4},{"$error":"#N/A"},{"$error":"#N/A"},{"$f":"IFERROR(AVERAGEIFS(Poids[POIDS],Poids[DATE],\">=\"&$H20,Poids[DATE],\"<=\"&$I20),NA())","v":{"$error":"#N/A"}}]
[{"$f":"IF((LEN('Suivi de perte de poids'!$C24)=0),TRUE)","v":true},{"$f":"IFERROR(IF(A21,0,IF(LEN('Suivi de perte de poids'!$B24)=0,0,'Suivi de perte de poids'!$B24)),\"\")","v":"00:00:00"},{"$f":"IFERROR(IF(A21,0,IF(LEN('Suivi de perte de poids'!$C24)=0,0,'Suivi de perte de poids'!$C24)),\"\")","v":0},{"$nulls":4},{"$error":"#N/A"},{"$error":"#N/A"},{"$f":"IFERROR(AVERAGEIFS(Poids[POIDS],Poids[DATE],\">=\"&$H21,Poids[DATE],\"<=\"&$I21),NA())","v":{"$error":"#N/A"}}]
[{"$f":"IF((LEN('Suivi de perte de poids'!$C25)=0),TRUE)","v":true},{"$f":"IFERROR(IF(A22,0,IF(LEN('Suivi de perte de poids'!$B25)=0,0,'Suivi de perte de poids'!$B25)),\"\")","v":"00:00:00"},{"$f":"IFERROR(IF(A22,0,IF(LEN('Suivi de perte de poids'!$C25)=0,0,'Suivi de perte de poids'!$C25)),\"\")","v":0},{"$nulls":4},{"$error":"#N/A"},{"$error":"#N/A"},{"$f":"IFERROR(AVERAGEIFS(Poids[POIDS],Poids[DATE],\">=\"&$H22,Poids[DATE],\"<=\"&$I22),NA())","v":{"$error":"#N/A"}}]
[{"$f":"IF((LEN('Suivi de perte de poids'!$C26)=0),TRUE)","v":true},{"$f":"IFERROR(IF(A23,0,IF(LEN('Suivi de perte de poids'!$B26)=0,0,'Suivi de perte de poids'!$B26)),\"\")","v":"00:00:00"},{"$f":"IFERROR(IF(A23,0,IF(LEN('Suivi de perte de poids'!$C26)=0,0,'Suivi de perte de poids'!$C26)),\"\")","v":0},{"$nulls":4},{"$error":"#N/A"},{"$error":"#N/A"},{"$f":"IFERROR(AVERAGEIFS(Poids[POIDS],Poids[DATE],\">=\"&$H23,Poids[DATE],\"<=\"&$I23),NA())","v":{"$error":"#N/A"}}]
[{"$f":"IF((LEN('Suivi de perte de poids'!$C27)=0),TRUE)","v":true},{"$f":"IFERROR(IF(A24,0,IF(LEN('Suivi de perte de poids'!$B27)=0,0,'Suivi de perte de poids'!$B27)),\"\")","v":"00:00:00"},{"$f":"IFERROR(IF(A24,0,IF(LEN('Suivi de perte de poids'!$C27)=0,0,'Suivi de perte de poids'!$C27)),\"\")","v":0},{"$nulls":4},{"$error":"#N/A"},{"$error":"#N/A"},{"$f":"IFERROR(AVERAGEIFS(Poids[POIDS],Poids[DATE],\">=\"&$H24,Poids[DATE],\"<=\"&$I24),NA())","v":{"$error":"#N/A"}}]
[{"$f":"IF((LEN('Suivi de perte de poids'!$C28)=0),TRUE)","v":true},{"$f":"IFERROR(IF(A25,0,IF(LEN('Suivi de perte de poids'!$B28)=0,0,'Suivi de perte de poids'!$B28)),\"\")","v":"00:00:00"},{"$f":"IFERROR(IF(A25,0,IF(LEN('Suivi de perte de poids'!$C28)=0,0,'Suivi de perte de poids'!$C28)),\"\")","v":0},{"$nulls":4},{"$error":"#N/A"},{"$error":"#N/A"},{"$f":"IFERROR(AVERAGEIFS(Poids[POIDS],Poids[DATE],\">=\"&$H25,Poids[DATE],\"<=\"&$I25),NA())","v":{"$error":"#N/A"}}]
[{"$f":"IF((LEN('Suivi de perte de poids'!$C29)=0),TRUE)","v":true},{"$f":"IFERROR(IF(A26,0,IF(LEN('Suivi de perte de poids'!$B29)=0,0,'Suivi de perte de poids'!$B29)),\"\")","v":"00:00:00"},{"$f":"IFERROR(IF(A26,0,IF(LEN('Suivi de perte de poids'!$C29)=0,0,'Suivi de perte de poids'!$C29)),\"\")","v":0},{"$nulls":4},{"$error":"#N/A"},{"$error":"#N/A"},{"$f":"IFERROR(AVERAGEIFS(Poids[POIDS],Poids[DATE],\">=\"&$H26,Poids[DATE],\"<=\"&$I26),NA())","v":{"$error":"#N/A"}}]
[{"$f":"IF((LEN('Suivi de perte de poids'!$C30)=0),TRUE)","v":true},{"$f":"IFERROR(IF(A27,0,IF(LEN('Suivi de perte de poids'!$B30)=0,0,'Suivi de perte de poids'!$B30)),\"\")","v":"00:00:00"},{"$f":"IFERROR(IF(A27,0,IF(LEN('Suivi de perte de poids'!$C30)=0,0,'Suivi de perte de poids'!$C30)),\"\")","v":0},{"$nulls":4},{"$error":"#N/A"},{"$error":"#N/A"},{"$f":"IFERROR(AVERAGEIFS(Poids[POIDS],Poids[DATE],\">=\"&$H27,Poids[DATE],\"<=\"&$I27),NA())","v":{"$error":"#N/A"}}]
[{"$f":"IF((LEN('Suivi de perte de poids'!$C31)=0),TRUE)","v":true},{"$f":"IFERROR(IF(A28,0,IF(LEN('Suivi de perte de poids'!$B31)=0,0,'Suivi de perte de poids'!$B31)),\"\")","v":"00:00:00"},{"$f":"IFERROR(IF(A28,0,IF(LEN('Suivi de perte de poids'!$C31)=0,0,'Suivi de perte de poids'!$C31)),\"\")","v":0},{"$nulls":4},{"$error":"#N/A"},{"$error":"#N/A"},{"$f":"IFERROR(AVERAGEIFS(Poids[POIDS],Poids[DATE],\">=\"&$H28,Poids[DATE],\"<=\"&$I28),NA())","v":{"$error":"#N/A"}}]
[{"$f":"IF((LEN('Suivi de perte de poids'!$C32)=0),TRUE)","v":true},{"$f":"IFERROR(IF(A29,0,IF(LEN('Suivi de perte de poids'!$B32)=0,0,'Suivi de perte de poids'!$B32)),\"\")","v":"00:00:00"},{"$f":"IFERROR(IF(A29,0,IF(LEN('Suivi de perte de poids'!$C32)=0,0,'Suivi de perte de poids'!$C32)),\"\")","v":0}]
[{"$f":"IF((LEN('Suivi de perte de poids'!$C33)=0),TRUE)","v":true},{"$f":"IFERROR(IF(A30,0,IF(LEN('Suivi de perte de poids'!$B33)=0,0,'Suivi de perte de poids'!$B33)),\"\")","v":"00:00:00"},{"$f":"IFERROR(IF(A30,0,IF(LEN('Suivi de perte de poids'!$C33)=0,0,'Suivi de perte de poids'!$C33)),\"\")","v":0}]
[{"$f":"IF((LEN('Suivi de perte de poids'!$C34)=0),TRUE)","v":true},{"$f":"IFERROR(IF(A31,0,IF(LEN('Suivi de perte de poids'!$B34)=0,0,'Suivi de perte de poids'!$B34)),\"\")","v":"00:00:00"},{"$f":"IFERROR(IF(A31,0,IF(LEN('Suivi de perte de poids'!$C34)=0,0,'Suivi de perte de poids'!$C34)),\"\")","v":0}]
[{"$f":"IF((LEN('Suivi de perte de poids'!$C35)=0),TRUE)","v":true},{"$f":"IFERROR(IF(A32,0,IF(LEN('Suivi de perte de poids'!$B35)=0,0,'Suivi de perte de poids'!$B35)),\"\")","v":"00:00:00"},{"$f":"IFERROR(IF(A32,0,IF(LEN('Suivi de perte de poids'!$C35)=0,0,'Suivi de perte de poids'!$C35)),\"\")","v":0}]
[{"$f":"IF((LEN('Suivi de perte de poids'!$C36)=0),TRUE)","v":true},{"$f":"IFERROR(IF(A33,0,IF(LEN('Suivi de perte de poids'!$B36)=0,0,'Suivi de perte de poids'!$B36)),\"\")","v":"00:00:00"},{"$f":"IFERROR(IF(A33,0,IF(LEN('Suivi de perte de poids'!$C36)=0,0,'Suivi de perte de poids'!$C36)),\"\")","v":0}]
[{"$f":"IF((LEN('Suivi de perte de poids'!$C37)=0),TRUE)","v":true},{"$f":"IFERROR(IF(A34,0,IF(LEN('Suivi de perte de poids'!$B37)=0,0,'Suivi de perte de poids'!$B37)),\"\")","v":"00:00:00"},{"$f":"IFERROR(IF(A34,0,IF(LEN('Suivi de perte de poids'!$C37)=0,0,'Suivi de perte de poids'!$C37)),\"\")","v":0}]
[{"$f":"IF((LEN('Suivi de perte de poids'!$C38)=0),TRUE)","v":true},{"$f":"IFERROR(IF(A35,0,IF(LEN('Suivi de perte de poids'!$B38)=0,0,'Suivi de perte de poids'!$B38)),\"\")","v":"00:00:00"},{"$f":"IFERROR(IF(A35,0,IF(LEN('Suivi de perte de poids'!$C38)=0,0,'Suivi de perte de poids'!$C38)),\"\")","v":0}]
[{"$f":"IF((LEN('Suivi de perte de poids'!$C39)=0),TRUE)","v":true},{"$f":"IFERROR(IF(A36,0,IF(LEN('Suivi de perte de poids'!$B39)=0,0,'Suivi de perte de poids'!$B39)),\"\")","v":"00:00:00"},{"$f":"IFERROR(IF(A36,0,IF(LEN('Suivi de perte de poids'!$C39)=0,0,'Suivi de perte de poids'!$C39)),\"\")","v":0}]
[{"$f":"IF((LEN('Suivi de perte de poids'!$C40)=0),TRUE)","v":true},{"$f":"IFERROR(IF(A37,0,IF(LEN('Suivi de perte de poids'!$B40)=0,0,'Suivi de perte de poids'!$B40)),\"\")","v":"00:00:00"},{"$f":"IFERROR(IF(A37,0,IF(LEN('Suivi de perte de poids'!$C40)=0,0,'Suivi de perte de poids'!$C40)),\"\")","v":0}]
[{"$f":"IF((LEN('Suivi de perte de poids'!$C41)=0),TRUE)","v":true},{"$f":"IFERROR(IF(A38,0,IF(LEN('Suivi de perte de poids'!$B41)=0,0,'Suivi de perte de poids'!$B41)),\"\")","v":"00:00:00"},{"$f":"IFERROR(IF(A38,0,IF(LEN('Suivi de perte de poids'!$C41)=0,0,'Suivi de perte de poids'!$C41)),\"\")","v":0}]
[{"$f":"IF((LEN('Suivi de perte de poids'!$C42)=0),TRUE)","v":true},{"$f":"IFERROR(IF(A39,0,IF(LEN('Suivi de perte de poids'!$B42)=0,0,'Suivi de perte de poids'!$B42)),\"\")","v":"00:00:00"},{"$f":"IFERROR(IF(A39,0,IF(LEN('Suivi de perte de poids'!$C42)=0,0,'Suivi de perte de poids'!$C42)),\"\")","v":0}]
[{"$f":"IF((LEN('Suivi de perte de poids'!$C43)=0),TRUE)","v":true},{"$f":"IFERROR(IF(A40,0,IF(LEN('Suivi de perte de poids'!$B43)=0,0,'Suivi de perte de poids'!$B43)),\"\")","v":"00:00:00"},{"$f":"IFERROR(IF(A40,0,IF(LEN('Suivi de perte de poids'!$C43)=0,0,'Suivi de perte de poids'!$C43)),\"\")","v":0}]
[{"$f":"IF((LEN('Suivi de perte de poids'!$C44)=0),TRUE)","v":true},{"$f":"IFERROR(IF(A41,0,IF(LEN('Suivi de perte de poids'!$B44)=0,0,'Suivi de perte de poids'!$B44)),\"\")","v":"00:00:00"},{"$f":"IFERROR(IF(A41,0,IF(LEN('Suivi de perte de poids'!$C44)=0,0,'Suivi de perte de poids'!$C44)),\"\")","v":0}]
[{"$f":"IF((LEN('Suivi de perte de poids'!$C45)=0),TRUE)","v":true},{"$f":"IFERROR(IF(A42,0,IF(LEN('Suivi de perte de poids'!$B45)=0,0,'Suivi de perte de poids'!$B45)),\"\")","v":"00:00:00"},{"$f":"IFERROR(IF(A42,0,IF(LEN('Suivi de perte de poids'!$C45)=0,0,'Suivi de perte de poids'!$C45)),\"\")","v":0}]
[{"$f":"IF((LEN('Suivi de perte de poids'!$C46)=0),TRUE)","v":true},{"$f":"IFERROR(IF(A43,0,IF(LEN('Suivi de perte de poids'!$B46)=0,0,'Suivi de perte de poids'!$B46)),\"\")","v":"00:00:00"},{"$f":"IFERROR(IF(A43,0,IF(LEN('Suivi de perte de poids'!$C46)=0,0,'Suivi de perte de poids'!$C46)),\"\")","v":0}]
[{"$f":"IF((LEN('Suivi de perte de poids'!$C47)=0),TRUE)","v":true},{"$f":"IFERROR(IF(A44,0,IF(LEN('Suivi de perte de poids'!$B47)=0,0,'Suivi de perte de poids'!$B47)),\"\")","v":"00:00:00"},{"$f":"IFERROR(IF(A44,0,IF(LEN('Suivi de perte de poids'!$C47)=0,0,'Suivi de perte de poids'!$C47)),\"\")","v":0}]
[{"$f":"IF((LEN('Suivi de perte de poids'!$C48)=0),TRUE)","v":true},{"$f":"IFERROR(IF(A45,0,IF(LEN('Suivi de perte de poids'!$B48)=0,0,'Suivi de perte de poids'!$B48)),\"\")","v":"00:00:00"},{"$f":"IFERROR(IF(A45,0,IF(LEN('Suivi de perte de poids'!$C48)=0,0,'Suivi de perte de poids'!$C48)),\"\")","v":0}]
[{"$f":"IF((LEN('Suivi de perte de poids'!$C49)=0),TRUE)","v":true},{"$f":"IFERROR(IF(A46,0,IF(LEN('Suivi de perte de poids'!$B49)=0,0,'Suivi de perte de poids'!$B49)),\"\")","v":"00:00:00"},{"$f":"IFERROR(IF(A46,0,IF(LEN('Suivi de perte de poids'!$C49)=0,0,'Suivi de perte de poids'!$C49)),\"\")","v":0}]
[{"$f":"IF((LEN('Suivi de perte de poids'!$C50)=0),TRUE)","v":true},{"$f":"IFERROR(IF(A47,0,IF(LEN('Suivi de perte de poids'!$B50)=0,0,'Suivi de perte de poids'!$B50)),\"\")","v":"00:00:00"},{"$f":"IFERROR(IF(A47,0,IF(LEN('Suivi de perte de poids'!$C50)=0,0,'Suivi de perte de poids'!$C50)),\"\")","v":0}]
[{"$f":"IF((LEN('Suivi de perte de poids'!$C51)=0),TRUE)","v":true},{"$f":"IFERROR(IF(A48,0,IF(LEN('Suivi de perte de poids'!$B51)=0,0,'Suivi de perte de poids'!$B51)),\"\")","v":"00:00:00"},{"$f":"IFERROR(IF(A48,0,IF(LEN('Suivi de perte de poids'!$C51)=0,0,'Suivi de perte de poids'!$C51)),\"\")","v":0}]
[{"$f":"IF((LEN('Suivi de perte de poids'!$C52)=0),TRUE)","v":true},{"$f":"IFERROR(IF(A49,0,IF(LEN('Suivi de perte de poids'!$B52)=0,0,'Suivi de perte de poids'!$B52)),\"\")","v":"00:00:00"},{"$f":"IFERROR(IF(A49,0,IF(LEN('Suivi de perte de poids'!$C52)=0,0,'Suivi de perte de poids'!$C52)),\"\")","v":0}]
[{"$f":"IF((LEN('Suivi de perte de poids'!$C53)=0),TRUE)","v":true},{"$f":"IFERROR(IF(A50,0,IF(LEN('Suivi de perte de poids'!$B53)=0,0,'Suivi de perte de poids'!$B53)),\"\")","v":"00:00:00"},{"$f":"IFERROR(IF(A50,0,IF(LEN('Suivi de perte de poids'!$C53)=0,0,'Suivi de perte de poids'!$C53)),\"\")","v":0}]
[{"$f":"IF((LEN('Suivi de perte de poids'!$C54)=0),TRUE)","v":true},{"$f":"IFERROR(IF(A51,0,IF(LEN('Suivi de perte de poids'!$B54)=0,0,'Suivi de perte de poids'!$B54)),\"\")","v":"00:00:00"},{"$f":"IFERROR(IF(A51,0,IF(LEN('Suivi de perte de poids'!$C54)=0,0,'Suivi de perte de poids'!$C54)),\"\")","v":0}]
[{"$f":"IF((LEN('Suivi de perte de poids'!$C55)=0),TRUE)","v":true},{"$f":"IFERROR(IF(A52,0,IF(LEN('Suivi de perte de poids'!$B55)=0,0,'Suivi de perte de poids'!$B55)),\"\")","v":"00:00:00"},{"$f":"IFERROR(IF(A52,0,IF(LEN('Suivi de perte de poids'!$C55)=0,0,'Suivi de perte de poids'!$C55)),\"\")","v":0}]
[{"$f":"IF((LEN('Suivi de perte de poids'!$C56)=0),TRUE)","v":true},{"$f":"IFERROR(IF(A53,0,IF(LEN('Suivi de perte de poids'!$B56)=0,0,'Suivi de perte de poids'!$B56)),\"\")","v":"00:00:00"},{"$f":"IFERROR(IF(A53,0,IF(LEN('Suivi de perte de poids'!$C56)=0,0,'Suivi de perte de poids'!$C56)),\"\")","v":0}]
[{"$f":"IF((LEN('Suivi de perte de poids'!$C57)=0),TRUE)","v":true},{"$f":"IFERROR(IF(A54,0,IF(LEN('Suivi de perte de poids'!$B57)=0,0,'Suivi de perte de poids'!$B57)),\"\")","v":"00:00:00"},{"$f":"IFERROR(IF(A54,0,IF(LEN('Suivi de perte de poids'!$C57)=0,0,'Suivi de perte de poids'!$C57)),\"\")","v":0}]
[{"$f":"IF((LEN('Suivi de perte de poids'!$C58)=0),TRUE)","v":true},{"$f":"IFERROR(IF(A55,0,IF(LEN('Suivi de perte de poids'!$B58)=0,0,'Suivi de perte de poids'!$B58)),\"\")","v":"00:00:00"},{"$f":"IFERROR(IF(A55,0,IF(LEN('Suivi de perte de poids'!$C58)=0,0,'Suivi de perte de poids'!$C58)),\"\")","v":0}]
[{"$f":"IF((LEN('Suivi de perte de poids'!$C59)=0),TRUE)","v":true},{"$f":"IFERROR(IF(A56,0,IF(LEN('Suivi de perte de poids'!$B59)=0,0,'Suivi de perte de poids'!$B59)),\"\")","v":"00:00:00"},{"$f":"IFERROR(IF(A56,0,IF(LEN('Suivi de perte de poids'!$C59)=0,0,'Suivi de perte de poids'!$C59)),\"\")","v":0}]
[{"$f":"IF((LEN('Suivi de perte de poids'!$C60)=0),TRUE)","v":true},{"$f":"IFERROR(IF(A57,0,IF(LEN('Suivi de perte de poids'!$B60)=0,0,'Suivi de perte de poids'!$B60)),\"\")","v":"00:00:00"},{"$f":"IFERROR(IF(A57,0,IF(LEN('Suivi de perte de poids'!$C60)=0,0,'Suivi de perte de poids'!$C60)),\"\")","v":0}]
[{"$f":"IF((LEN('Suivi de perte de poids'!$C61)=0),TRUE)","v":true},{"$f":"IFERROR(IF(A58,0,IF(LEN('Suivi de perte de poids'!$B61)=0,0,'Suivi de perte de poids'!$B61)),\"\")","v":"00:00:00"},{"$f":"IFERROR(IF(A58,0,IF(LEN('Suivi de perte de poids'!$C61)=0,0,'Suivi de perte de poids'!$C61)),\"\")","v":0}]
[{"$f":"IF((LEN('Suivi de perte de poids'!$C62)=0),TRUE)","v":true},{"$f":"IFERROR(IF(A59,0,IF(LEN('Suivi de perte de poids'!$B62)=0,0,'Suivi de perte de poids'!$B62)),\"\")","v":"00:00:00"},{"$f":"IFERROR(IF(A59,0,IF(LEN('Suivi de perte de poids'!$C62)=0,0,'Suivi de perte de poids'!$C62)),\"\")","v":0}]
[{"$f":"IF((LEN('Suivi de perte de poids'!$C63)=0),TRUE)","v":true},{"$f":"IFERROR(IF(A60,0,IF(LEN('Suivi de perte de poids'!$B63)=0,0,'Suivi de perte de poids'!$B63)),\"\")","v":"00:00:00"},{"$f":"IFERROR(IF(A60,0,IF(LEN('Suivi de perte de poids'!$C63)=0,0,'Suivi de perte de poids'!$C63)),\"\")","v":0}]
[{"$f":"IF((LEN('Suivi de perte de poids'!$C64)=0),TRUE)","v":true},{"$f":"IFERROR(IF(A61,0,IF(LEN('Suivi de perte de poids'!$B64)=0,0,'Suivi de perte de poids'!$B64)),\"\")","v":"00:00:00"},{"$f":"IFERROR(IF(A61,0,IF(LEN('Suivi de perte de poids'!$C64)=0,0,'Suivi de perte de poids'!$C64)),\"\")","v":0}]
[{"$f":"IF((LEN('Suivi de perte de poids'!$C65)=0),TRUE)","v":true},{"$f":"IFERROR(IF(A62,0,IF(LEN('Suivi de perte de poids'!$B65)=0,0,'Suivi de perte de poids'!$B65)),\"\")","v":"00:00:00"},{"$f":"IFERROR(IF(A62,0,IF(LEN('Suivi de perte de poids'!$C65)=0,0,'Suivi de perte de poids'!$C65)),\"\")","v":0}]
[{"$f":"IF((LEN('Suivi de perte de poids'!$C66)=0),TRUE)","v":true},{"$f":"IFERROR(IF(A63,0,IF(LEN('Suivi de perte de poids'!$B66)=0,0,'Suivi de perte de poids'!$B66)),\"\")","v":"00:00:00"},{"$f":"IFERROR(IF(A63,0,IF(LEN('Suivi de perte de poids'!$C66)=0,0,'Suivi de perte de poids'!$C66)),\"\")","v":0}]
[{"$f":"IF((LEN('Suivi de perte de poids'!$C67)=0),TRUE)","v":true},{"$f":"IFERROR(IF(A64,0,IF(LEN('Suivi de perte de poids'!$B67)=0,0,'Suivi de perte de poids'!$B67)),\"\")","v":"00:00:00"},{"$f":"IFERROR(IF(A64,0,IF(LEN('Suivi de perte de poids'!$C67)=0,0,'Suivi de perte de poids'!$C67)),\"\")","v":0}]
[{"$f":"IF((LEN('Suivi de perte de poids'!$C68)=0),TRUE)","v":true},{"$f":"IFERROR(IF(A65,0,IF(LEN('Suivi de perte de poids'!$B68)=0,0,'Suivi de perte de poids'!$B68)),\"\")","v":"00:00:00"},{"$f":"IFERROR(IF(A65,0,IF(LEN('Suivi de perte de poids'!$C68)=0,0,'Suivi de perte de poids'!$C68)),\"\")","v":0}]
[{"$f":"IF((LEN('Suivi de perte de poids'!$C69)=0),TRUE)","v":true},{"$f":"IFERROR(IF(A66,0,IF(LEN('Suivi de perte de poids'!$B69)=0,0,'Suivi de perte de poids'!$B69)),\"\")","v":"00:00:00"},{"$f":"IFERROR(IF(A66,0,IF(LEN('Suivi de perte de poids'!$C69)=0,0,'Suivi de perte de poids'!$C69)),\"\")","v":0}]
[{"$f":"IF((LEN('Suivi de perte de poids'!$C70)=0),TRUE)","v":true},{"$f":"IFERROR(IF(A67,0,IF(LEN('Suivi de perte de poids'!$B70)=0,0,'Suivi de perte de poids'!$B70)),\"\")","v":"00:00:00"},{"$f":"IFERROR(IF(A67,0,IF(LEN('Suivi de perte de poids'!$C70)=0,0,'Suivi de perte de poids'!$C70)),\"\")","v":0}]
[{"$f":"IF((LEN('Suivi de perte de poids'!$C71)=0),TRUE)","v":true},{"$f":"IFERROR(IF(A68,0,IF(LEN('Suivi de perte de poids'!$B71)=0,0,'Suivi de perte de poids'!$B71)),\"\")","v":"00:00:00"},{"$f":"IFERROR(IF(A68,0,IF(LEN('Suivi de perte de poids'!$C71)=0,0,'Suivi de perte de poids'!$C71)),\"\")","v":0}]
[{"$f":"IF((LEN('Suivi de perte de poids'!$C72)=0),TRUE)","v":true},{"$f":"IFERROR(IF(A69,0,IF(LEN('Suivi de perte de poids'!$B72)=0,0,'Suivi de perte de poids'!$B72)),\"\")","v":"00:00:00"},{"$f":"IFERROR(IF(A69,0,IF(LEN('Suivi de perte de poids'!$C72)=0,0,'Suivi de perte de poids'!$C72)),\"\")","v":0}]
[{"$f":"IF((LEN('Suivi de perte de poids'!$C73)=0),TRUE)","v":true},{"$f":"IFERROR(IF(A70,0,IF(LEN('Suivi de perte de poids'!$B73)=0,0,'Suivi de perte de poids'!$B73)),\"\")","v":"00:00:00"},{"$f":"IFERROR(IF(A70,0,IF(LEN('Suivi de perte de poids'!$C73)=0,0,'Suivi de perte de poids'!$C73)),\"\")","v":0}]
[{"$f":"IF((LEN('Suivi de perte de poids'!$C74)=0),TRUE)","v":true},{"$f":"IFERROR(IF(A71,0,IF(LEN('Suivi de perte de poids'!$B74)=0,0,'Suivi de perte de poids'!$B74)),\"\")","v":"00:00:00"},{"$f":"IFERROR(IF(A71,0,IF(LEN('Suivi de perte de poids'!$C74)=0,0,'Suivi de perte de poids'!$C74)),\"\")","v":0}]
[{"$f":"IF((LEN('Suivi de perte de poids'!$C75)=0),TRUE)","v":true},{"$f":"IFERROR(IF(A72,0,IF(LEN('Suivi de perte de poids'!$B75)=0,0,'Suivi de perte de poids'!$B75)),\"\")","v":"00:00:00"},{"$f":"IFERROR(IF(A72,0,IF(LEN('Suivi de perte de poids'!$C75)=0,0,'Suivi de perte de poids'!$C75)),\"\")","v":0}]
[{"$f":"IF((LEN('Suivi de perte de poids'!$C76)=0),TRUE)","v":true},{"$f":"IFERROR(IF(A73,0,IF(LEN('Suivi de perte de poids'!$B76)=0,0,'Suivi de perte de poids'!$B76)),\"\")","v":"00:00:00"},{"$f":"IFERROR(IF(A73,0,IF(LEN('Suivi de perte de poids'!$C76)=0,0,'Suivi de perte de poids'!$C76)),\"\")","v":0}]
[{"$f":"IF((LEN('Suivi de perte de poids'!$C77)=0),TRUE)","v":true},{"$f":"IFERROR(IF(A74,0,IF(LEN('Suivi de perte de poids'!$B77)=0,0,'Suivi de perte de poids'!$B77)),\"\")","v":"00:00:00"},{"$f":"IFERROR(IF(A74,0,IF(LEN('Suivi de perte de poids'!$C77)=0,0,'Suivi de perte de poids'!$C77)),\"\")","v":0}]
[{"$f":"IF((LEN('Suivi de perte de poids'!$C78)=0),TRUE)","v":true},{"$f":"IFERROR(IF(A75,0,IF(LEN('Suivi de perte de poids'!$B78)=0,0,'Suivi de perte de poids'!$B78)),\"\")","v":"00:00:00"},{"$f":"IFERROR(IF(A75,0,IF(LEN('Suivi de perte de poids'!$C78)=0,0,'Suivi de perte de poids'!$C78)),\"\")","v":0}]
[{"$f":"IF((LEN('Suivi de perte de poids'!$C79)=0),TRUE)","v":true},{"$f":"IFERROR(IF(A76,0,IF(LEN('Suivi de perte de poids'!$B79)=0,0,'Suivi de perte de poids'!$B79)),\"\")","v":"00:00:00"},{"$f":"IFERROR(IF(A76,0,IF(LEN('Suivi de perte de poids'!$C79)=0,0,'Suivi de perte de poids'!$C79)),\"\")","v":0}]
[{"$f":"IF((LEN('Suivi de perte de poids'!$C80)=0),TRUE)","v":true},{"$f":"IFERROR(IF(A77,0,IF(LEN('Suivi de perte de poids'!$B80)=0,0,'Suivi de perte de poids'!$B80)),\"\")","v":"00:00:00"},{"$f":"IFERROR(IF(A77,0,IF(LEN('Suivi de perte de poids'!$C80)=0,0,'Suivi de perte de poids'!$C80)),\"\")","v":0}]
[{"$f":"IF((LEN('Suivi de perte de poids'!$C81)=0),TRUE)","v":true},{"$f":"IFERROR(IF(A78,0,IF(LEN('Suivi de perte de poids'!$B81)=0,0,'Suivi de perte de poids'!$B81)),\"\")","v":"00:00:00"},{"$f":"IFERROR(IF(A78,0,IF(LEN('Suivi de perte de poids'!$C81)=0,0,'Suivi de perte de poids'!$C81)),\"\")","v":0}]
[{"$f":"IF((LEN('Suivi de perte de poids'!$C82)=0),TRUE)","v":true},{"$f":"IFERROR(IF(A79,0,IF(LEN('Suivi de perte de poids'!$B82)=0,0,'Suivi de perte de poids'!$B82)),\"\")","v":"00:00:00"},{"$f":"IFERROR(IF(A79,0,IF(LEN('Suivi de perte de poids'!$C82)=0,0,'Suivi de perte de poids'!$C82)),\"\")","v":0}]
[{"$f":"IF((LEN('Suivi de perte de poids'!$C83)=0),TRUE)","v":true},{"$f":"IFERROR(IF(A80,0,IF(LEN('Suivi de perte de poids'!$B83)=0,0,'Suivi de perte de poids'!$B83)),\"\")","v":"00:00:00"},{"$f":"IFERROR(IF(A80,0,IF(LEN('Suivi de perte de poids'!$C83)=0,0,'Suivi de perte de poids'!$C83)),\"\")","v":0}]
[{"$f":"IF((LEN('Suivi de perte de poids'!$C84)=0),TRUE)","v":true},{"$f":"IFERROR(IF(A81,0,IF(LEN('Suivi de perte de poids'!$B84)=0,0,'Suivi de perte de poids'!$B84)),\"\")","v":"00:00:00"},{"$f":"IFERROR(IF(A81,0,IF(LEN('Suivi de perte de poids'!$C84)=0,0,'Suivi de perte de poids'!$C84)),\"\")","v":0}]
[{"$f":"IF((LEN('Suivi de perte de poids'!$C85)=0),TRUE)","v":true},{"$f":"IFERROR(IF(A82,0,IF(LEN('Suivi de perte de poids'!$B85)=0,0,'Suivi de perte de poids'!$B85)),\"\")","v":"00:00:00"},{"$f":"IFERROR(IF(A82,0,IF(LEN('Suivi de perte de poids'!$C85)=0,0,'Suivi de perte de poids'!$C85)),\"\")","v":0}]
[{"$f":"IF((LEN('Suivi de perte de poids'!$C86)=0),TRUE)","v":true},{"$f":"IFERROR(IF(A83,0,IF(LEN('Suivi de perte de poids'!$B86)=0,0,'Suivi de perte de poids'!$B86)),\"\")","v":"00:00:00"},{"$f":"IFERROR(IF(A83,0,IF(LEN('Suivi de perte de poids'!$C86)=0,0,'Suivi de perte de poids'!$C86)),\"\")","v":0}]
[{"$f":"IF((LEN('Suivi de perte de poids'!$C87)=0),TRUE)","v":true},{"$f":"IFERROR(IF(A84,0,IF(LEN('Suivi de perte de poids'!$B87)=0,0,'Suivi de perte de poids'!$B87)),\"\")","v":"00:00:00"},{"$f":"IFERROR(IF(A84,0,IF(LEN('Suivi de perte de poids'!$C87)=0,0,'Suivi de perte de poids'!$C87)),\"\")","v":0}]
[{"$f":"IF((LEN('Suivi de perte de poids'!$C88)=0),TRUE)","v":true},{"$f":"IFERROR(IF(A85,0,IF(LEN('Suivi de perte de poids'!$B88)=0,0,'Suivi de perte de poids'!$B88)),\"\")","v":"00:00:00"},{"$f":"IFERROR(IF(A85,0,IF(LEN('Suivi de perte de poids'!$C88)=0,0,'Suivi de perte de poids'!$C88)),\"\")","v":0}]
[{"$f":"IF((LEN('Suivi de perte de poids'!$C89)=0),TRUE)","v":true},{"$f":"IFERROR(IF(A86,0,IF(LEN('Suivi de perte de poids'!$B89)=0,0,'Suivi de perte de poids'!$B89)),\"\")","v":"00:00:00"},{"$f":"IFERROR(IF(A86,0,IF(LEN('Suivi de perte de poids'!$C89)=0,0,'Suivi de perte de poids'!$C89)),\"\")","v":0}]
[{"$f":"IF((LEN('Suivi de perte de poids'!$C90)=0),TRUE)","v":true},{"$f":"IFERROR(IF(A87,0,IF(LEN('Suivi de perte de poids'!$B90)=0,0,'Suivi de perte de poids'!$B90)),\"\")","v":"00:00:00"},{"$f":"IFERROR(IF(A87,0,IF(LEN('Suivi de perte de poids'!$C90)=0,0,'Suivi de perte de poids'!$C90)),\"\")","v":0}]
[{"$f":"IF((LEN('Suivi de perte de poids'!$C91)=0),TRUE)","v":true},{"$f":"IFERROR(IF(A88,0,IF(LEN('Suivi de perte de poids'!$B91)=0,0,'Suivi de perte de poids'!$B91)),\"\")","v":"00:00:00"},{"$f":"IFERROR(IF(A88,0,IF(LEN('Suivi de perte de poids'!$C91)=0,0,'Suivi de perte de poids'!$C91)),\"\")","v":0}]
[{"$f":"IF((LEN('Suivi de perte de poids'!$C92)=0),TRUE)","v":true},{"$f":"IFERROR(IF(A89,0,IF(LEN('Suivi de perte de poids'!$B92)=0,0,'Suivi de perte de poids'!$B92)),\"\")","v":"00:00:00"},{"$f":"IFERROR(IF(A89,0,IF(LEN('Suivi de perte de poids'!$C92)=0,0,'Suivi de perte de poids'!$C92)),\"\")","v":0}]
[{"$f":"IF((LEN('Suivi de perte de poids'!$C93)=0),TRUE)","v":true},{"$f":"IFERROR(IF(A90,0,IF(LEN('Suivi de perte de poids'!$B93)=0,0,'Suivi de perte de poids'!$B93)),\"\")","v":"00:00:00"},{"$f":"IFERROR(IF(A90,0,IF(LEN('Suivi de perte de poids'!$C93)=0,0,'Suivi de perte de poids'!$C93)),\"\")","v":0}]
[{"$f":"IF((LEN('Suivi de perte de poids'!$C94)=0),TRUE)","v":true},{"$f":"IFERROR(IF(A91,0,IF(LEN('Suivi de perte de poids'!$B94)=0,0,'Suivi de perte de poids'!$B94)),\"\")","v":"00:00:00"},{"$f":"IFERROR(IF(A91,0,IF(LEN('Suivi de perte de poids'!$C94)=0,0,'Suivi de perte de poids'!$C94)),\"\")","v":0}]
[{"$f":"IF((LEN('Suivi de perte de poids'!$C95)=0),TRUE)","v":true},{"$f":"IFERROR(IF(A92,0,IF(LEN('Suivi de perte de poids'!$B95)=0,0,'Suivi de perte de poids'!$B95)),\"\")","v":"00:00:00"},{"$f":"IFERROR(IF(A92,0,IF(LEN('Suivi de perte de poids'!$C95)=0,0,'Suivi de perte de poids'!$C95)),\"\")","v":0}]
[{"$f":"IF((LEN('Suivi de perte de poids'!$C96)=0),TRUE)","v":true},{"$f":"IFERROR(IF(A93,0,IF(LEN('Suivi de perte de poids'!$B96)=0,0,'Suivi de perte de poids'!$B96)),\"\")","v":"00:00:00"},{"$f":"IFERROR(IF(A93,0,IF(LEN('Suivi de perte de poids'!$C96)=0,0,'Suivi de perte de poids'!$C96)),\"\")","v":0}]
[{"$f":"IF((LEN('Suivi de perte de poids'!$C97)=0),TRUE)","v":true},{"$f":"IFERROR(IF(A94,0,IF(LEN('Suivi de perte de poids'!$B97)=0,0,'Suivi de perte de poids'!$B97)),\"\")","v":"00:00:00"},{"$f":"IFERROR(IF(A94,0,IF(LEN('Suivi de perte de poids'!$C97)=0,0,'Suivi de perte de poids'!$C97)),\"\")","v":0}]
[{"$f":"IF((LEN('Suivi de perte de poids'!$C98)=0),TRUE)","v":true},{"$f":"IFERROR(IF(A95,0,IF(LEN('Suivi de perte de poids'!$B98)=0,0,'Suivi de perte de poids'!$B98)),\"\")","v":"00:00:00"},{"$f":"IFERROR(IF(A95,0,IF(LEN('Suivi de perte de poids'!$C98)=0,0,'Suivi de perte de poids'!$C98)),\"\")","v":0}]
[{"$f":"IF((LEN('Suivi de perte de poids'!$C99)=0),TRUE)","v":true},{"$f":"IFERROR(IF(A96,0,IF(LEN('Suivi de perte de poids'!$B99)=0,0,'Suivi de perte de poids'!$B99)),\"\")","v":"00:00:00"},{"$f":"IFERROR(IF(A96,0,IF(LEN('Suivi de perte de poids'!$C99)=0,0,'Suivi de perte de poids'!$C99)),\"\")","v":0}]
[{"$f":"IF((LEN('Suivi de perte de poids'!$C100)=0),TRUE)","v":true},{"$f":"IFERROR(IF(A97,0,IF(LEN('Suivi de perte de poids'!$B100)=0,0,'Suivi de perte de poids'!$B100)),\"\")","v":"00:00:00"},{"$f":"IFERROR(IF(A97,0,IF(LEN('Suivi de perte de poids'!$C100)=0,0,'Suivi de perte de poids'!$C100)),\"\")","v":0}]
[{"$f":"IF((LEN('Suivi de perte de poids'!$C101)=0),TRUE)","v":true},{"$f":"IFERROR(IF(A98,0,IF(LEN('Suivi de perte de poids'!$B101)=0,0,'Suivi de perte de poids'!$B101)),\"\")","v":"00:00:00"},{"$f":"IFERROR(IF(A98,0,IF(LEN('Suivi de perte de poids'!$C101)=0,0,'Suivi de perte de poids'!$C101)),\"\")","v":0}]
[{"$f":"IF((LEN('Suivi de perte de poids'!$C102)=0),TRUE)","v":true},{"$f":"IFERROR(IF(A99,0,IF(LEN('Suivi de perte de poids'!$B102)=0,0,'Suivi de perte de poids'!$B102)),\"\")","v":"00:00:00"},{"$f":"IFERROR(IF(A99,0,IF(LEN('Suivi de perte de poids'!$C102)=0,0,'Suivi de perte de poids'!$C102)),\"\")","v":0}]
[{"$f":"IF((LEN('Suivi de perte de poids'!$C103)=0),TRUE)","v":true},{"$f":"IFERROR(IF(A100,0,IF(LEN('Suivi de perte de poids'!$B103)=0,0,'Suivi de perte de poids'!$B103)),\"\")","v":"00:00:00"},{"$f":"IFERROR(IF(A100,0,IF(LEN('Suivi de perte de poids'!$C103)=0,0,'Suivi de perte de poids'!$C103)),\"\")","v":0}]
[{"$f":"IF((LEN('Suivi de perte de poids'!$C104)=0),TRUE)","v":true},{"$f":"IFERROR(IF(A101,0,IF(LEN('Suivi de perte de poids'!$B104)=0,0,'Suivi de perte de poids'!$B104)),\"\")","v":"00:00:00"},{"$f":"IFERROR(IF(A101,0,IF(LEN('Suivi de perte de poids'!$C104)=0,0,'Suivi de perte de poids'!$C104)),\"\")","v":0}]
[{"$f":"IF((LEN('Suivi de perte de poids'!$C105)=0),TRUE)","v":true},{"$f":"IFERROR(IF(A102,0,IF(LEN('Suivi de perte de poids'!$B105)=0,0,'Suivi de perte de poids'!$B105)),\"\")","v":"00:00:00"},{"$f":"IFERROR(IF(A102,0,IF(LEN('Suivi de perte de poids'!$C105)=0,0,'Suivi de perte de poids'!$C105)),\"\")","v":0}]
[{"$f":"IF((LEN('Suivi de perte de poids'!$C106)=0),TRUE)","v":true},{"$f":"IFERROR(IF(A103,0,IF(LEN('Suivi de perte de poids'!$B106)=0,0,'Suivi de perte de poids'!$B106)),\"\")","v":"00:00:00"},{"$f":"IFERROR(IF(A103,0,IF(LEN('Suivi de perte de poids'!$C106)=0,0,'Suivi de perte de poids'!$C106)),\"\")","v":0}]
[{"$f":"IF((LEN('Suivi de perte de poids'!$C107)=0),TRUE)","v":true},{"$f":"IFERROR(IF(A104,0,IF(LEN('Suivi de perte de poids'!$B107)=0,0,'Suivi de perte de poids'!$B107)),\"\")","v":"00:00:00"},{"$f":"IFERROR(IF(A104,0,IF(LEN('Suivi de perte de poids'!$C107)=0,0,'Suivi de perte de poids'!$C107)),\"\")","v":0}]
[{"$f":"IF((LEN('Suivi de perte de poids'!$C108)=0),TRUE)","v":true},{"$f":"IFERROR(IF(A105,0,IF(LEN('Suivi de perte de poids'!$B108)=0,0,'Suivi de perte de poids'!$B108)),\"\")","v":"00:00:00"},{"$f":"IFERROR(IF(A105,0,IF(LEN('Suivi de perte de poids'!$C108)=0,0,'Suivi de perte de poids'!$C108)),\"\")","v":0}]
[{"$f":"IF((LEN('Suivi de perte de poids'!$C109)=0),TRUE)","v":true},{"$f":"IFERROR(IF(A106,0,IF(LEN('Suivi de perte de poids'!$B109)=0,0,'Suivi de perte de poids'!$B109)),\"\")","v":"00:00:00"},{"$f":"IFERROR(IF(A106,0,IF(LEN('Suivi de perte de poids'!$C109)=0,0,'Suivi de perte de poids'!$C109)),\"\")","v":0}]
[{"$f":"IF((LEN('Suivi de perte de poids'!$C110)=0),TRUE)","v":true},{"$f":"IFERROR(IF(A107,0,IF(LEN('Suivi de perte de poids'!$B110)=0,0,'Suivi de perte de poids'!$B110)),\"\")","v":"00:00:00"},{"$f":"IFERROR(IF(A107,0,IF(LEN('Suivi de perte de poids'!$C110)=0,0,'Suivi de perte de poids'!$C110)),\"\")","v":0}]